[Event "Late-Titled-Tuesday-Blitz-July-09-2024"]
[Site "Chess.com"]
[Date "2024.07.09"]
[Round "9"]
[White "ChessicallyInclined"]
[Black "Kowarenai"]
[Result "1-0"]
[WhiteElo "2730"]
[BlackElo "2558"]
[TimeControl "180+1"]
[EndTime "15:43:35 PDT"]
[Termination "ChessicallyInclined won by resignation"]

1. e4 {[%clk 0:03:00.9]} 1... c6 {[%clk 0:02:59.4]} 2. Nf3 {[%clk 0:03:00.9]}
2... d5 {[%clk 0:03:00.3]} 3. Nc3 {[%clk 0:03:01.3]} 3... Bg4 {[%clk 0:03:00]}
4. h3 {[%clk 0:03:01.6]} 4... Bxf3 {[%clk 0:03:00.1]} 5. Qxf3 {[%clk 0:03:02.5]}
5... e6 {[%clk 0:03:00.4]} 6. Be2 {[%clk 0:03:03.4]} 6... dxe4 {[%clk
0:02:59.7]} 7. Nxe4 {[%clk 0:03:03.1]} 7... Nd7 {[%clk 0:03:00.6]} 8. d4 {[%clk
0:03:03.3]} 8... Ngf6 {[%clk 0:03:01.1]} 9. O-O {[%clk 0:03:03.6]} 9... Nxe4
{[%clk 0:03:01.2]} 10. Qxe4 {[%clk 0:03:04]} 10... Nf6 {[%clk 0:03:01.9]} 11.
Qd3 {[%clk 0:03:04]} 11... Be7 {[%clk 0:03:02]} 12. Rd1 {[%clk 0:03:03.8]} 12...
O-O {[%clk 0:03:02.4]} 13. a4 {[%clk 0:03:03]} 13... a5 {[%clk 0:02:59.5]} 14.
Qf3 {[%clk 0:03:02.6]} 14... Qd5 {[%clk 0:02:59.1]} 15. c3 {[%clk 0:02:58.1]}
15... Qxf3 {[%clk 0:02:58.6]} 16. Bxf3 {[%clk 0:02:58]} 16... Rfd8 {[%clk
0:02:59]} 17. g3 {[%clk 0:02:53.3]} 17... Rd7 {[%clk 0:02:56.5]} 18. Bd2 {[%clk
0:02:44.6]} 18... Nd5 {[%clk 0:02:47.7]} 19. h4 {[%clk 0:02:41.3]} 19... h6
{[%clk 0:02:43.6]} 20. Kf1 {[%clk 0:02:40]} 20... Kf8 {[%clk 0:02:43]} 21. Ke2
{[%clk 0:02:35.5]} 21... Bd8 {[%clk 0:02:33.6]} 22. Be4 {[%clk 0:02:34.6]} 22...
Nf6 {[%clk 0:02:32.9]} 23. Bc2 {[%clk 0:02:31.3]} 23... Bb6 {[%clk 0:02:32.6]}
24. Be1 {[%clk 0:02:19.9]} 24... Rad8 {[%clk 0:02:31.3]} 25. Rd3 {[%clk
0:02:16.7]} 25... Bc7 {[%clk 0:02:09.6]} 26. Rad1 {[%clk 0:02:14.6]} 26... Bb6
{[%clk 0:02:07.6]} 27. Bd2 {[%clk 0:02:05.6]} 27... Bc7 {[%clk 0:02:06.4]} 28.
Bc1 {[%clk 0:02:05.6]} 28... Bb6 {[%clk 0:02:06.1]} 29. Kf3 {[%clk 0:02:01.5]}
29... Bc7 {[%clk 0:02:05.3]} 30. g4 {[%clk 0:02:01.1]} 30... Nd5 {[%clk
0:02:00.8]} 31. g5 {[%clk 0:02:00.1]} 31... hxg5 {[%clk 0:01:59.9]} 32. hxg5
{[%clk 0:02:01]} 32... g6 {[%clk 0:01:51.6]} 33. Kg4 {[%clk 0:01:55.7]} 33...
Kg7 {[%clk 0:01:51.9]} 34. Rh3 {[%clk 0:01:54]} 34... Rh8 {[%clk 0:01:51.9]} 35.
Rxh8 {[%clk 0:01:53.6]} 35... Kxh8 {[%clk 0:01:51.9]} 36. Bd2 {[%clk 0:01:44.5]}
36... Kg7 {[%clk 0:01:49]} 37. Kf3 {[%clk 0:01:39.6]} 37... Bd6 {[%clk
0:01:35.1]} 38. Be4 {[%clk 0:01:29.8]} 38... Ne7 {[%clk 0:01:29.1]} 39. c4
{[%clk 0:01:22.9]} 39... Bb4 {[%clk 0:01:18.8]} 40. Bxb4 {[%clk 0:01:19.7]}
40... axb4 {[%clk 0:01:19.7]} 41. a5 {[%clk 0:01:10]} 41... Rd8 {[%clk
0:01:17.8]} 42. Ke3 {[%clk 0:01:06.6]} 42... Ra8 {[%clk 0:01:16.8]} 43. Ra1
{[%clk 0:01:06]} 43... Ra6 {[%clk 0:01:00.1]} 44. Ra4 {[%clk 0:00:57.8]} 44...
b6 {[%clk 0:00:56.8]} 45. Rxb4 {[%clk 0:00:47]} 45... bxa5 {[%clk 0:00:54.4]}
46. Rb7 {[%clk 0:00:47.5]} 46... Kf8 {[%clk 0:00:54.1]} 47. Kf4 {[%clk
0:00:42.7]} 47... a4 {[%clk 0:00:49.6]} 48. Ke5 {[%clk 0:00:40.2]} 48... a3
{[%clk 0:00:48.1]} 49. bxa3 {[%clk 0:00:39.9]} 49... Rxa3 {[%clk 0:00:49]} 50.
Kd6 {[%clk 0:00:36.5]} 50... Ra6 {[%clk 0:00:32.8]} 51. Rb8+ {[%clk 0:00:32.4]}
51... Kg7 {[%clk 0:00:32.5]} 52. Kxe7 {[%clk 0:00:32.3]} 1-0

[Event "Late-Titled-Tuesday-Blitz-July-09-2024"]
[Site "Chess.com"]
[Date "2024.07.09"]
[Round "9"]
[White "ArturoCaceres"]
[Black "djano"]
[Result "0-1"]
[WhiteElo "2398"]
[BlackElo "2588"]
[TimeControl "180+1"]
[EndTime "15:43:40 PDT"]
[Termination "djano won on time"]

1. c3 {[%clk 0:02:37.9]} 1... f5 {[%clk 0:02:57.9]} 2. d4 {[%clk 0:02:38.8]}
2... Nf6 {[%clk 0:02:57.9]} 3. e3 {[%clk 0:02:39.7]} 3... e6 {[%clk 0:02:57.9]}
4. Bd3 {[%clk 0:02:40.6]} 4... d5 {[%clk 0:02:58.1]} 5. Ne2 {[%clk 0:02:41.5]}
5... Bd6 {[%clk 0:02:58.1]} 6. O-O {[%clk 0:02:42.4]} 6... Bxh2+ {[%clk
0:02:56.9]} 7. Kxh2 {[%clk 0:02:41.4]} 7... Ng4+ {[%clk 0:02:57.3]} 8. Kg3
{[%clk 0:02:42.1]} 8... Qg5 {[%clk 0:02:55.4]} 9. f4 {[%clk 0:02:32.8]} 9... Qg6
{[%clk 0:02:46.3]} 10. Kf3 {[%clk 0:02:27.4]} 10... Nc6 {[%clk 0:02:25]} 11. Rh1
{[%clk 0:02:23.1]} 11... Bd7 {[%clk 0:02:20.8]} 12. g3 {[%clk 0:02:18.5]} 12...
O-O-O {[%clk 0:02:19.8]} 13. b4 {[%clk 0:02:06.5]} 13... h5 {[%clk 0:02:19.3]}
14. Rh4 {[%clk 0:02:06.1]} 14... Qf6 {[%clk 0:02:16.3]} 15. Ng1 {[%clk
0:01:58.3]} 15... Ne7 {[%clk 0:02:13]} 16. Rh1 {[%clk 0:01:54.8]} 16... g5
{[%clk 0:02:11]} 17. Nh3 {[%clk 0:01:51.6]} 17... h4 {[%clk 0:01:54.8]} 18. fxg5
{[%clk 0:01:10.9]} 18... Qg7 {[%clk 0:01:51.5]} 19. Qe1 {[%clk 0:01:08.5]} 19...
e5 {[%clk 0:01:49.6]} 20. dxe5 {[%clk 0:01:02.7]} 20... Nc6 {[%clk 0:01:27.1]}
21. gxh4 {[%clk 0:00:41.3]} 21... Ncxe5+ {[%clk 0:01:24.2]} 22. Ke2 {[%clk
0:00:28.1]} 22... d4 {[%clk 0:01:23.2]} 23. cxd4 {[%clk 0:00:25.1]} 23... Nxd3
{[%clk 0:01:16.8]} 24. Kxd3 {[%clk 0:00:24.9]} 24... Bb5+ {[%clk 0:01:11.1]} 25.
Kc2 {[%clk 0:00:24.5]} 25... Rhe8 {[%clk 0:00:56.4]} 26. Nc3 {[%clk 0:00:22.9]}
26... Bc6 {[%clk 0:00:56.7]} 27. Rf1 {[%clk 0:00:14]} 27... Rxd4 {[%clk
0:00:51.6]} 28. exd4 {[%clk 0:00:13.7]} 28... Rxe1 {[%clk 0:00:52.5]} 29. Rxe1
{[%clk 0:00:14.5]} 29... Qxd4 {[%clk 0:00:52.8]} 30. Nf4 {[%clk 0:00:09.2]}
30... b5 {[%clk 0:00:44.5]} 31. Bd2 {[%clk 0:00:08.9]} 31... Nf2 {[%clk
0:00:41.8]} 32. Re2 {[%clk 0:00:05.3]} 32... Ne4 {[%clk 0:00:41.1]} 33. Rd1
{[%clk 0:00:06]} 33... Qxb4 {[%clk 0:00:40.8]} 34. Nd3 {[%clk 0:00:03.2]} 34...
Qc4 {[%clk 0:00:40.2]} 35. g6 {[%clk 0:00:03.8]} 35... b4 {[%clk 0:00:40]} 36.
g7 {[%clk 0:00:04.4]} 36... bxc3 {[%clk 0:00:40.6]} 37. Ne5 {[%clk 0:00:03.3]}
37... Ba4+ {[%clk 0:00:40.3]} 38. Kb1 {[%clk 0:00:02.1]} 38... Qb5+ {[%clk
0:00:39.3]} 0-1

[Event "Late-Titled-Tuesday-Blitz-July-09-2024"]
[Site "Chess.com"]
[Date "2024.07.09"]
[Round "9"]
[White "GilbertoHernandezAmura"]
[Black "Nicolik"]
[Result "0-1"]
[WhiteElo "2522"]
[BlackElo "2732"]
[TimeControl "180+1"]
[EndTime "15:43:44 PDT"]
[Termination "Nicolik won by resignation"]

1. e4 {[%clk 0:03:00.9]} 1... c5 {[%clk 0:03:00]} 2. Nf3 {[%clk 0:03:00.8]} 2...
Nc6 {[%clk 0:03:00.7]} 3. Bb5 {[%clk 0:02:56.9]} 3... g6 {[%clk 0:03:00.7]} 4.
O-O {[%clk 0:02:55.6]} 4... Bg7 {[%clk 0:03:01.1]} 5. Re1 {[%clk 0:02:52.8]}
5... Nf6 {[%clk 0:03:01.4]} 6. Bxc6 {[%clk 0:02:50.2]} 6... bxc6 {[%clk
0:02:54.5]} 7. Nc3 {[%clk 0:02:34.7]} 7... O-O {[%clk 0:02:51.3]} 8. d3 {[%clk
0:02:26.6]} 8... d5 {[%clk 0:02:41]} 9. e5 {[%clk 0:02:25.3]} 9... Nd7 {[%clk
0:02:39.2]} 10. Bg5 {[%clk 0:02:06.9]} 10... f6 {[%clk 0:02:37.9]} 11. exf6
{[%clk 0:02:04.9]} 11... exf6 {[%clk 0:02:38.8]} 12. Bf4 {[%clk 0:02:04.7]}
12... Nb6 {[%clk 0:02:34.6]} 13. a4 {[%clk 0:02:02]} 13... g5 {[%clk 0:02:33.5]}
14. Bg3 {[%clk 0:02:01.6]} 14... Bg4 {[%clk 0:02:25.7]} 15. h3 {[%clk
0:02:00.4]} 15... Bh5 {[%clk 0:02:25.4]} 16. a5 {[%clk 0:01:59.6]} 16... Nd7
{[%clk 0:02:15.9]} 17. Re6 {[%clk 0:01:52.3]} 17... Ne5 {[%clk 0:02:13.3]} 18.
Bxe5 {[%clk 0:01:45.6]} 18... fxe5 {[%clk 0:02:14.2]} 19. g4 {[%clk 0:01:45.9]}
19... Qd7 {[%clk 0:00:58.9]} 20. Nxg5 {[%clk 0:01:43]} 20... h6 {[%clk
0:00:59.1]} 21. gxh5 {[%clk 0:01:39]} 21... hxg5 {[%clk 0:00:59.5]} 22. Rg6
{[%clk 0:01:33.6]} 22... Qxh3 {[%clk 0:00:56.3]} 23. h6 {[%clk 0:01:25.7]} 23...
Rf4 {[%clk 0:00:56.2]} 24. Rxg7+ {[%clk 0:01:22.1]} 24... Kh8 {[%clk 0:00:56.2]}
25. Ne2 {[%clk 0:01:11.7]} 25... Rh4 {[%clk 0:00:44.8]} 26. Ng3 {[%clk
0:01:11.5]} 26... Rf8 {[%clk 0:00:44]} 27. Qe2 {[%clk 0:01:05.6]} 27... Qh2+
{[%clk 0:00:42.8]} 28. Kf1 {[%clk 0:01:05.8]} 28... Qxg3 {[%clk 0:00:43.2]} 29.
Ke1 {[%clk 0:00:56.4]} 29... Rh1+ {[%clk 0:00:41.5]} 30. Kd2 {[%clk 0:00:56.6]}
30... Qf4+ {[%clk 0:00:26.5]} 31. Qe3 {[%clk 0:00:49.9]} 31... Rxa1 {[%clk
0:00:26.1]} 32. Rxa7 {[%clk 0:00:44.5]} 32... Qxf2+ {[%clk 0:00:18.3]} 33. Qxf2
{[%clk 0:00:42.3]} 33... Rxf2+ {[%clk 0:00:19.2]} 34. Kc3 {[%clk 0:00:42.6]}
34... Rc1 {[%clk 0:00:14.3]} 35. a6 {[%clk 0:00:35.2]} 35... Rcxc2+ {[%clk
0:00:14.6]} 36. Kb3 {[%clk 0:00:35.7]} 36... Rxb2+ {[%clk 0:00:15.2]} 37. Ka3
{[%clk 0:00:36.4]} 37... Rb1 {[%clk 0:00:14.8]} 38. Ra8+ {[%clk 0:00:26.6]}
38... Kh7 {[%clk 0:00:14.7]} 39. a7 {[%clk 0:00:27.2]} 39... Ra1+ {[%clk
0:00:14.9]} 40. Kb3 {[%clk 0:00:27.2]} 40... Rfa2 {[%clk 0:00:15.2]} 0-1

[Event "Late-Titled-Tuesday-Blitz-July-09-2024"]
[Site "Chess.com"]
[Date "2024.07.09"]
[Round "9"]
[White "MatthewG-p4p"]
[Black "Brown_Mamba24"]
[Result "0-1"]
[WhiteElo "2894"]
[BlackElo "2558"]
[TimeControl "180+1"]
[EndTime "15:43:49 PDT"]
[Termination "Brown_Mamba24 won by resignation"]

1. f4 {[%clk 0:03:00.9]} 1... e5 {[%clk 0:02:57.9]} 2. fxe5 {[%clk 0:03:01.8]}
2... d6 {[%clk 0:02:58.4]} 3. Nf3 {[%clk 0:03:02.7]} 3... dxe5 {[%clk
0:02:58.4]} 4. e4 {[%clk 0:03:03.6]} 4... Bg4 {[%clk 0:02:57.3]} 5. Bc4 {[%clk
0:03:03.9]} 5... Nf6 {[%clk 0:02:53.6]} 6. Bxf7+ {[%clk 0:03:03.2]} 6... Kxf7
{[%clk 0:02:44.1]} 7. Nxe5+ {[%clk 0:03:03]} 7... Kg8 {[%clk 0:02:39.6]} 8. Nxg4
{[%clk 0:03:03.9]} 8... Nxe4 {[%clk 0:02:39.2]} 9. Qf3 {[%clk 0:03:02.7]} 9...
Qh4+ {[%clk 0:02:22.6]} 10. g3 {[%clk 0:03:01.3]} 10... Qe7 {[%clk 0:02:23.2]}
11. O-O {[%clk 0:02:57.1]} 11... h5 {[%clk 0:02:21.3]} 12. Ne3 {[%clk
0:02:14.4]} 12... Nc6 {[%clk 0:02:17.4]} 13. Nf5 {[%clk 0:02:14.7]} 13... Qe6
{[%clk 0:02:15.8]} 14. d3 {[%clk 0:02:13.1]} 14... Bc5+ {[%clk 0:02:10.6]} 15.
Kh1 {[%clk 0:02:13.2]} 15... Nf2+ {[%clk 0:02:03]} 16. Rxf2 {[%clk 0:01:16.5]}
16... Bxf2 {[%clk 0:02:03.9]} 17. Qe4 {[%clk 0:01:08.2]} 17... Re8 {[%clk
0:01:47.7]} 18. Qxe6+ {[%clk 0:00:50.1]} 18... Rxe6 {[%clk 0:01:48.6]} 19. Bd2
{[%clk 0:00:50.9]} 19... g6 {[%clk 0:01:40.1]} 20. Nh4 {[%clk 0:00:50.9]} 20...
g5 {[%clk 0:01:23.8]} 21. Nf3 {[%clk 0:00:16.1]} 21... h4 {[%clk 0:01:21.8]} 22.
gxh4 {[%clk 0:00:10]} 22... gxh4 {[%clk 0:01:19.9]} 23. Nc3 {[%clk 0:00:10.4]}
23... h3 {[%clk 0:01:17.5]} 24. Rf1 {[%clk 0:00:10.9]} 24... Be3 {[%clk
0:01:15.9]} 25. Be1 {[%clk 0:00:11]} 25... Rh5 {[%clk 0:01:11]} 26. Ne4 {[%clk
0:00:11.3]} 26... Rhh6 {[%clk 0:00:53]} 27. Bg3 {[%clk 0:00:09.5]} 27... Nb4
{[%clk 0:00:44.4]} 28. Ne1 {[%clk 0:00:05.6]} 28... Nd5 {[%clk 0:00:35.6]} 29.
Rf3 {[%clk 0:00:03.7]} 29... Bd4 {[%clk 0:00:34.8]} 30. c3 {[%clk 0:00:03.5]}
30... Be5 {[%clk 0:00:34.4]} 31. Nc2 {[%clk 0:00:02.9]} 31... Bxg3 {[%clk
0:00:31.4]} 32. hxg3 {[%clk 0:00:02.6]} 32... Nf6 {[%clk 0:00:30.4]} 33. Nf2
{[%clk 0:00:01.8]} 33... Re2 {[%clk 0:00:28.7]} 34. Nd4 {[%clk 0:00:02.6]} 34...
Rxb2 {[%clk 0:00:28]} 35. g4 {[%clk 0:00:02.5]} 35... h2 {[%clk 0:00:23.5]} 36.
g5 {[%clk 0:00:01.6]} 36... Rb1+ {[%clk 0:00:23.8]} 37. Nd1 {[%clk 0:00:01.8]}
37... Rxd1+ {[%clk 0:00:23.8]} 38. Kg2 {[%clk 0:00:02.4]} 38... h1=Q+ {[%clk
0:00:23.5]} 0-1

[Event "Late-Titled-Tuesday-Blitz-July-09-2024"]
[Site "Chess.com"]
[Date "2024.07.09"]
[Round "9"]
[White "Individoom"]
[Black "malakismayil"]
[Result "1-0"]
[WhiteElo "2760"]
[BlackElo "2537"]
[TimeControl "180+1"]
[EndTime "15:43:49 PDT"]
[Termination "Individoom won on time"]

1. b3 {[%clk 0:03:00.9]} 1... e5 {[%clk 0:02:59.4]} 2. Bb2 {[%clk 0:03:00]} 2...
Nc6 {[%clk 0:03:00.1]} 3. e3 {[%clk 0:02:59.7]} 3... Nf6 {[%clk 0:02:59.1]} 4.
Bb5 {[%clk 0:02:59.3]} 4... d6 {[%clk 0:02:57.4]} 5. d4 {[%clk 0:02:58.4]} 5...
exd4 {[%clk 0:02:53.7]} 6. exd4 {[%clk 0:02:58.2]} 6... Bd7 {[%clk 0:02:54.4]}
7. Nf3 {[%clk 0:02:55.9]} 7... Be7 {[%clk 0:02:54]} 8. O-O {[%clk 0:02:55.7]}
8... O-O {[%clk 0:02:53.6]} 9. d5 {[%clk 0:02:55.5]} 9... Ne5 {[%clk 0:02:50.8]}
10. Bxd7 {[%clk 0:02:54.7]} 10... Nexd7 {[%clk 0:02:51.7]} 11. Re1 {[%clk
0:02:53.7]} 11... Re8 {[%clk 0:02:51]} 12. c4 {[%clk 0:02:53.2]} 12... a5 {[%clk
0:02:41.6]} 13. Nc3 {[%clk 0:02:52.7]} 13... Nc5 {[%clk 0:02:41.5]} 14. Qc2
{[%clk 0:02:50]} 14... Nfd7 {[%clk 0:02:40.6]} 15. Nb5 {[%clk 0:02:46.3]} 15...
Rc8 {[%clk 0:02:25.9]} 16. Na7 {[%clk 0:02:36.9]} 16... Ra8 {[%clk 0:02:22]} 17.
Nb5 {[%clk 0:02:36.7]} 17... Rc8 {[%clk 0:02:21.9]} 18. Nfd4 {[%clk 0:02:34.7]}
18... Bf6 {[%clk 0:02:20.6]} 19. Nf5 {[%clk 0:02:33.5]} 19... Ne5 {[%clk
0:02:07.9]} 20. f4 {[%clk 0:02:26]} 20... Ned7 {[%clk 0:01:56.2]} 21. Qd2 {[%clk
0:02:11.4]} 21... g6 {[%clk 0:01:35.3]} 22. Rxe8+ {[%clk 0:02:07.8]} 22... Qxe8
{[%clk 0:01:35]} 23. Re1 {[%clk 0:02:08.3]} 23... Ne4 {[%clk 0:01:18.4]} 24.
Nh6+ {[%clk 0:02:06.1]} 24... Kg7 {[%clk 0:01:16.3]} 25. Qc2 {[%clk 0:02:05.7]}
25... Kxh6 {[%clk 0:01:08.1]} 26. Rxe4 {[%clk 0:02:04.6]} 26... Qd8 {[%clk
0:01:08.7]} 27. Bc1 {[%clk 0:01:48.7]} 27... Kg7 {[%clk 0:01:06.1]} 28. Re2
{[%clk 0:01:39.1]} 28... Nc5 {[%clk 0:01:05]} 29. Bd2 {[%clk 0:01:31]} 29... c6
{[%clk 0:01:04.1]} 30. dxc6 {[%clk 0:01:30.7]} 30... bxc6 {[%clk 0:01:03.9]} 31.
Na7 {[%clk 0:01:30.4]} 31... Ra8 {[%clk 0:00:49]} 32. Nxc6 {[%clk 0:01:25]}
32... Qb6 {[%clk 0:00:49.4]} 33. Ne7 {[%clk 0:01:18.6]} 33... Bxe7 {[%clk
0:00:22.5]} 34. Bc3+ {[%clk 0:01:14.4]} 34... Kf8 {[%clk 0:00:19.7]} 35. Kh1
{[%clk 0:01:12.2]} 35... Ne6 {[%clk 0:00:18.3]} 36. Qd2 {[%clk 0:01:09]} 36...
Re8 {[%clk 0:00:14.6]} 37. f5 {[%clk 0:01:08.4]} 37... Bg5 {[%clk 0:00:11.4]}
38. Qd5 {[%clk 0:01:03.6]} 38... Nf4 {[%clk 0:00:03.8]} 39. Rxe8+ {[%clk
0:01:02.4]} 39... Kxe8 {[%clk 0:00:03.7]} 40. Qe4+ {[%clk 0:01:01.4]} 40... Kf8
{[%clk 0:00:02.9]} 41. h4 {[%clk 0:00:59.6]} 41... Bh6 {[%clk 0:00:02.7]} 42.
Bf6 {[%clk 0:00:48.8]} 42... d5 {[%clk 0:00:02.7]} 43. Qe7+ {[%clk 0:00:47.8]}
43... Kg8 {[%clk 0:00:02.4]} 44. Qe8+ {[%clk 0:00:46.4]} 44... Bf8 {[%clk
0:00:03]} 45. Be7 {[%clk 0:00:46.7]} 1-0

[Event "Late-Titled-Tuesday-Blitz-July-09-2024"]
[Site "Chess.com"]
[Date "2024.07.09"]
[Round "9"]
[White "schondeln"]
[Black "Horokoskii"]
[Result "0-1"]
[WhiteElo "2342"]
[BlackElo "2148"]
[TimeControl "180+1"]
[EndTime "15:43:50 PDT"]
[Termination "Horokoskii won on time"]

1. e4 {[%clk 0:03:00.9]} 1... c5 {[%clk 0:02:57.7]} 2. Nf3 {[%clk 0:03:00.2]}
2... d6 {[%clk 0:02:57.1]} 3. Bc4 {[%clk 0:02:59.8]} 3... Nf6 {[%clk 0:02:54.7]}
4. d3 {[%clk 0:02:59.9]} 4... g6 {[%clk 0:02:54.2]} 5. O-O {[%clk 0:02:58.9]}
5... Bg7 {[%clk 0:02:54.7]} 6. c3 {[%clk 0:02:59.1]} 6... O-O {[%clk 0:02:55.3]}
7. Bb3 {[%clk 0:02:59.4]} 7... Nc6 {[%clk 0:02:54.5]} 8. h3 {[%clk 0:02:59.6]}
8... b5 {[%clk 0:02:48]} 9. Nbd2 {[%clk 0:02:58.7]} 9... a5 {[%clk 0:02:47]} 10.
Re1 {[%clk 0:02:58.1]} 10... a4 {[%clk 0:02:45.1]} 11. Bc2 {[%clk 0:02:57.6]}
11... Bb7 {[%clk 0:02:45.7]} 12. a3 {[%clk 0:02:57.4]} 12... Rc8 {[%clk
0:02:44.9]} 13. d4 {[%clk 0:02:41.6]} 13... cxd4 {[%clk 0:02:40]} 14. cxd4
{[%clk 0:02:42.5]} 14... Na5 {[%clk 0:02:37.9]} 15. Bd3 {[%clk 0:02:36.8]} 15...
Qb6 {[%clk 0:02:34.4]} 16. b4 {[%clk 0:01:43.4]} 16... axb3 {[%clk 0:02:32.6]}
17. Nxb3 {[%clk 0:01:43.2]} 17... Nc4 {[%clk 0:02:29.7]} 18. Bg5 {[%clk
0:01:16.9]} 18... Rfe8 {[%clk 0:02:25.7]} 19. Qe2 {[%clk 0:01:10.3]} 19... Nd7
{[%clk 0:02:23.1]} 20. Ra2 {[%clk 0:01:00.5]} 20... h6 {[%clk 0:02:09.9]} 21.
Bc1 {[%clk 0:00:59.4]} 21... Kh7 {[%clk 0:02:10]} 22. h4 {[%clk 0:00:57.6]}
22... h5 {[%clk 0:02:09.2]} 23. Rd1 {[%clk 0:00:23.8]} 23... Ba6 {[%clk
0:01:57.8]} 24. d5 {[%clk 0:00:17.5]} 24... Nde5 {[%clk 0:01:46.4]} 25. Nxe5
{[%clk 0:00:16.9]} 25... Bxe5 {[%clk 0:01:46.3]} 26. Be3 {[%clk 0:00:17]} 26...
Nxe3 {[%clk 0:01:45.3]} 27. Qxe3 {[%clk 0:00:17.2]} 27... Qb8 {[%clk 0:01:40.5]}
28. f4 {[%clk 0:00:13.3]} 28... Bg7 {[%clk 0:01:40.1]} 29. Nd4 {[%clk
0:00:11.4]} 29... Qa7 {[%clk 0:01:36.9]} 30. Bf1 {[%clk 0:00:11.5]} 30... Rc7
{[%clk 0:01:27.1]} 31. Kh2 {[%clk 0:00:10.8]} 31... Rec8 {[%clk 0:01:25.9]} 32.
Rad2 {[%clk 0:00:09.5]} 32... Rc3 {[%clk 0:01:23.5]} 33. Qf2 {[%clk 0:00:09.6]}
33... Bh6 {[%clk 0:01:21.7]} 34. g3 {[%clk 0:00:05]} 34... Bg7 {[%clk
0:01:20.5]} 35. Nf3 {[%clk 0:00:04.9]} 35... Qxf2+ {[%clk 0:01:08.3]} 36. Rxf2
{[%clk 0:00:05.8]} 36... Rxa3 {[%clk 0:01:03.6]} 37. Ng5+ {[%clk 0:00:06]} 37...
Kg8 {[%clk 0:01:02.5]} 38. Rb1 {[%clk 0:00:06.2]} 38... Bf6 {[%clk 0:01:00.6]}
39. Bxb5 {[%clk 0:00:04.9]} 39... Bxb5 {[%clk 0:01:00.7]} 40. Rxb5 {[%clk
0:00:04.5]} 40... Rcc3 {[%clk 0:00:58.9]} 41. Rg2 {[%clk 0:00:03.9]} 41... Bxg5
{[%clk 0:00:58.2]} 42. hxg5 {[%clk 0:00:04.8]} 42... Re3 {[%clk 0:00:54.1]} 43.
Rb4 {[%clk 0:00:05]} 43... Re1 {[%clk 0:00:52.6]} 44. Rf2 {[%clk 0:00:04]} 44...
Raa1 {[%clk 0:00:53]} 45. Kg2 {[%clk 0:00:04]} 45... Re3 {[%clk 0:00:49.8]} 46.
Rbb2 {[%clk 0:00:01.6]} 46... Rae1 {[%clk 0:00:49]} 47. Rf3 {[%clk 0:00:01.1]}
47... Rxe4 {[%clk 0:00:48.8]} 48. f5 {[%clk 0:00:01.2]} 48... R1e2+ {[%clk
0:00:46.7]} 0-1

[Event "Late-Titled-Tuesday-Blitz-July-09-2024"]
[Site "Chess.com"]
[Date "2024.07.09"]
[Round "9"]
[White "Beaterawn"]
[Black "Oleg_Papayan"]
[Result "1-0"]
[WhiteElo "2458"]
[BlackElo "2589"]
[TimeControl "180+1"]
[EndTime "15:43:51 PDT"]
[Termination "Beaterawn won by checkmate"]

1. e4 {[%clk 0:02:58.1]} 1... d5 {[%clk 0:02:59.8]} 2. exd5 {[%clk 0:02:57.9]}
2... Qxd5 {[%clk 0:03:00.7]} 3. Nc3 {[%clk 0:02:57.8]} 3... Qd8 {[%clk
0:03:00.5]} 4. d4 {[%clk 0:02:58.4]} 4... c6 {[%clk 0:03:01.4]} 5. Nf3 {[%clk
0:02:58.7]} 5... Bf5 {[%clk 0:03:01.7]} 6. Ne5 {[%clk 0:02:55.1]} 6... h5 {[%clk
0:03:01.6]} 7. Be3 {[%clk 0:02:52.5]} 7... Nd7 {[%clk 0:02:56.9]} 8. Qf3 {[%clk
0:02:46.8]} 8... e6 {[%clk 0:02:49.7]} 9. h3 {[%clk 0:02:18.8]} 9... Nxe5 {[%clk
0:02:32]} 10. dxe5 {[%clk 0:02:19.7]} 10... Bxc2 {[%clk 0:02:32.2]} 11. Be2
{[%clk 0:02:09.7]} 11... Be7 {[%clk 0:01:51.8]} 12. O-O {[%clk 0:01:51.5]} 12...
g5 {[%clk 0:01:46]} 13. Ne4 {[%clk 0:01:36.5]} 13... Bxe4 {[%clk 0:01:18.7]} 14.
Qxe4 {[%clk 0:01:36]} 14... Qd5 {[%clk 0:01:19.6]} 15. Qxd5 {[%clk 0:01:32.3]}
15... exd5 {[%clk 0:01:07.5]} 16. f4 {[%clk 0:01:30.1]} 16... gxf4 {[%clk
0:00:46.9]} 17. Bxf4 {[%clk 0:01:13.4]} 17... Bc5+ {[%clk 0:00:46.9]} 18. Kh2
{[%clk 0:01:08.4]} 18... Ne7 {[%clk 0:00:46.9]} 19. Bg5 {[%clk 0:01:01.1]} 19...
Ng6 {[%clk 0:00:39.8]} 20. Bd3 {[%clk 0:00:54.3]} 20... Be7 {[%clk 0:00:33.8]}
21. e6 {[%clk 0:00:17.8]} 21... Ne5 {[%clk 0:00:18.2]} 22. exf7+ {[%clk
0:00:15.3]} 22... Kf8 {[%clk 0:00:11.4]} 23. Bxe7+ {[%clk 0:00:14.8]} 23... Kxe7
{[%clk 0:00:12.3]} 24. Rae1 {[%clk 0:00:14.4]} 24... Kd6 {[%clk 0:00:12.9]} 25.
Rf6+ {[%clk 0:00:14.4]} 25... Kc5 {[%clk 0:00:08.2]} 26. Rxe5 {[%clk 0:00:13.9]}
26... Kd4 {[%clk 0:00:09.1]} 27. Ref5 {[%clk 0:00:08.8]} 27... Rhf8 {[%clk
0:00:09.7]} 28. Be2 {[%clk 0:00:08.6]} 28... c5 {[%clk 0:00:10.1]} 29. Bxh5
{[%clk 0:00:09.1]} 29... c4 {[%clk 0:00:10.5]} 30. Bf3 {[%clk 0:00:09.5]} 30...
Rad8 {[%clk 0:00:10.1]} 31. Rf4+ {[%clk 0:00:07.5]} 31... Ke3 {[%clk 0:00:10.2]}
32. Kg3 {[%clk 0:00:05.9]} 32... d4 {[%clk 0:00:09.9]} 33. Re6+ {[%clk
0:00:06.4]} 33... Kd2 {[%clk 0:00:10.1]} 34. Re2+ {[%clk 0:00:06.9]} 34... Kc1
{[%clk 0:00:10.1]} 35. Be4 {[%clk 0:00:05.6]} 35... d3 {[%clk 0:00:10.4]} 36.
Rf1# {[%clk 0:00:06.1]} 1-0